bitfinex/quotes_SOLUSD_20251009
["timestamp","ask_amount","ask_price","bid_price","bid_amount"]
[1760044428096,0.71,219.27,219.24,20.8]
[1760044428405,0.71,219.26,219.24,20.8]
[1760044429793,4.56062352,219.27,219.24,20.8]
[1760044429984,5.27062352,219.27,219.24,20.8]
[1760044430900,11.39886923,219.32,219.16,13.50467961]
[1760044430901,4.56100342,219.25,219.16,13.50467961]
[1760044431108,4.56100342,219.25,219.17,0.46]
[1760044431291,5.27100342,219.25,219.17,0.46]
[1760044431492,5.27100342,219.25,219.19,20.8]
[1760044431797,0.71,219.24,219.19,20.8]
[1760044432195,0.71,219.23,219.19,20.8]
[1760044433087,10.87647521,219.29,219.18,4.56231987]
[1760044433292,0.71,219.23,219.2,20.8]
[1760044435501,4.56130606,219.24,219.2,20.8]
[1760044435680,0.71,219.23,219.2,20.8]
[1760044436805,0.71,219.3,219.21,0.46]
[1760044437016,16.66987232,219.3,219.22,20.8]
[1760044437199,0.71,219.29,219.22,20.8]
[1760044437393,0.71,219.28,219.22,20.8]
[1760044438106,0.71,219.3,219.23,0.46]
[1760044438783,4.56017146,219.29,219.22,25.36159091]
[1760044438991,0.71,219.28,219.22,20.8]
[1760044440290,0.71,219.3,219.23,0.46]
[1760044440699,4.55913194,219.34,219.23,0.46]
[1760044440907,0.71,219.33,219.27,20.8]
[1760044441104,0.2,219.35,219.27,20.8]
[1760044441305,0.2,219.35,219.28,0.46]
[1760044442187,0.2,219.35,219.28,21.26]
[1760044442389,0.2,219.35,219.29,0.46]
[1760044442889,0.7,219.34,219.28,0.46]
[1760044443088,0.7,219.34,219.27,25.36046018]
[1760044443287,0.7,219.33,219.27,25.82046018]
[1760044443497,0.9,219.35,219.28,0.46]
[1760044444217,4.55914503,219.34,219.28,5.02034552]
[1760044444520,5.25914503,219.34,219.28,5.02034552]
[1760044444994,4.55914503,219.34,219.28,0.46]
[1760044445188,0.9,219.35,219.28,0.46]
[1760044445404,0.2,219.35,219.28,0.46]
[1760044445607,0.2,219.35,219.29,20.8]
[1760044445795,0.2,219.35,219.3,0.46]
[1760044445991,0.2,219.35,219.31,0.46]
[1760044446194,0.2,219.35,219.34,20.8]
[1760044446419,0.2,219.35,219.34,21.26]
[1760044447293,0.2,219.35,219.34,32.13647521]
[1760044447500,0.2,219.35,219.34,35.74049501]
[1760044448295,0.2,219.35,219.34,40.29962695]
[1760044448908,0.2,219.37,219.34,51.6974568]
[1760044449103,0.2,219.38,219.34,51.6974568]
[1760044449104,0.2,219.38,219.36,10.87647521]
[1760044449318,0.2,219.46,219.41,20.8]
[1760044449618,0.2,219.46,219.45,20.8]
[1760044449923,10.87647521,219.56,219.45,20.8]
[1760044449924,3.79606781,219.61,219.49,20.8]
[1760044450115,0.7,219.6,219.53,20.8]
[1760044450313,0.7,219.59,219.53,20.8]
[1760044450623,0.7,219.58,219.53,20.8]
[1760044450824,0.7,219.57,219.53,20.8]
[1760044451025,0.7,219.56,219.53,20.8]
[1760044451620,0.7,219.58,219.53,20.8]
[1760044451817,0.7,219.57,219.53,20.8]
[1760044451998,10.87647521,219.63,219.53,20.8]
[1760044452201,15.93734346,219.61,219.53,20.8]
[1760044452510,0.7,219.6,219.53,20.8]
[1760044452694,0.7,219.59,219.53,20.8]
[1760044452899,0.7,219.58,219.53,20.8]
[1760044453101,0.7,219.57,219.53,20.8]
[1760044453321,0.7,219.56,219.53,20.8]
[1760044453517,0.7,219.55,219.54,20.8]
[1760044453722,0.7,219.55,219.49,32.34]
[1760044453903,0.7,219.54,219.52,20.8]
[1760044454316,5.25500076,219.54,219.52,20.8]
[1760044455218,4.55500076,219.54,219.52,20.8]
[1760044455415,4.55456766,219.56,219.52,20.8]
[1760044455617,4.55442163,219.57,219.52,20.8]
[1760044455927,0.7,219.56,219.52,20.8]
[1760044456631,4.55462015,219.56,219.52,20.8]
[1760044457129,5.25462015,219.56,219.52,20.8]
[1760044457902,5.25462015,219.56,219.52,34.31805982]
[1760044458303,4.55462015,219.56,219.52,34.31805982]
[1760044459138,4.55435624,219.57,219.52,34.31805982]
[1760044459432,0.7,219.56,219.52,34.31805982]
[1760044459926,0.7,219.55,219.52,20.8]
[1760044460104,0.7,219.54,219.52,20.8]
[1760044460741,31.92113423,219.69,219.53,0.06]
[1760044460742,0.7,219.61,219.53,0.06]
[1760044460912,0.7,219.6,219.53,20.8]
[1760044461102,10.87647521,219.68,219.53,20.8]
[1760044461412,0.7,219.59,219.53,20.8]
[1760044462726,0.7,219.66,219.54,0.06]
[1760044462921,15.93299038,219.67,219.57,20.8]
[1760044462922,0.7,219.65,219.57,20.8]
[1760044463221,0.7,219.64,219.59,20.8]
[1760044463529,0.7,219.63,219.59,20.8]
[1760044463917,0.7,219.62,219.59,20.8]
[1760044464115,0.7,219.64,219.59,20.8]
[1760044464325,0.7,219.63,219.59,20.8]
[1760044465230,0.7,219.66,219.59,25.35388688]
[1760044465432,0.7,219.66,219.59,25.41388688]
[1760044466427,0.7,219.66,219.59,20.86]
[1760044466607,16.63081474,219.7,219.6,0.06]
[1760044468331,16.63081474,219.7,219.59,25.41392896]
[1760044468533,0.7,219.69,219.59,25.41392896]
[1760044468734,0.7,219.68,219.59,25.41392896]
[1760044469515,5.25228296,219.67,219.59,25.41392896]
[1760044470025,4.55228296,219.67,219.6,0.06]
[1760044470428,5.25228296,219.67,219.59,20.8]
[1760044470629,0.7,219.66,219.59,20.8]
[1760044471018,0.7,219.65,219.57,20.86]
[1760044471240,0.7,219.65,219.61,20.8]
[1760044471745,32.28,219.75,219.61,20.8]
[1760044471746,0.7,219.64,219.61,20.8]
[1760044474031,0.67,219.64,219.61,20.8]
[1760044474737,15.93299038,219.67,219.58,4.55413291]
[1760044474929,0.67,219.63,219.57,53.04]
[1760044475126,0.67,219.63,219.57,57.59432974]
[1760044475736,15.93299038,219.67,219.57,53.04]
[1760044475928,0.67,219.63,219.57,53.04]
[1760044476133,0.67,219.63,219.57,57.59429547]
[1760044476645,5.2231137,219.63,219.57,57.59429547]
[1760044476950,5.2231137,219.63,219.57,53.04]
[1760044477122,4.5531137,219.63,219.57,25.35426722]
[1760044477329,0.67,219.62,219.58,20.8]
[1760044477942,4.5531137,219.63,219.58,20.8]
[1760044478148,0.67,219.62,219.58,20.8]
[1760044478324,4.5531137,219.63,219.58,20.8]
[1760044478640,0.67,219.62,219.58,20.8]
[1760044478845,0.67,219.61,219.55,53.02]
[1760044479646,15.93589383,219.63,219.52,13.40327998]
[1760044479831,0.67,219.6,219.52,4.55538914]
[1760044480038,0.67,219.59,219.52,32.22]
[1760044480353,22.76384822,219.65,219.52,32.22]
[1760044480354,0.67,219.58,219.55,20.8]
[1760044480534,0.67,219.57,219.55,20.8]
[1760044480731,0.67,219.56,219.55,20.8]
[1760044481136,0.67,219.56,219.52,32.22]
[1760044481137,0.67,219.56,219.52,13.61246949]
[1760044481344,10.87647521,219.64,219.52,20.8]
[1760044481345,0.67,219.55,219.52,20.8]
[1760044481546,0.67,219.54,219.52,20.8]
[1760044482045,10.87647521,219.64,219.52,14.00450775]
[1760044482251,5.22527354,219.53,219.48,32.22]
[1760044482640,5.22527354,219.53,219.48,32.9]
[1760044482641,4.55527354,219.53,219.48,32.9]
[1760044482844,4.55527354,219.53,219.48,53.7]
[1760044483036,4.55527354,219.53,219.49,0.68]
[1760044483037,15.94323873,219.53,219.49,0.68]
[1760044483355,15.94323873,219.53,219.44,32.24]
[1760044483356,15.94323873,219.53,219.5,0.68]
[1760044483553,15.94323873,219.53,219.48,13.9537597]
[1760044483851,15.94323873,219.53,219.47,20.8]
[1760044484147,16.10323873,219.53,219.45,0.68]
[1760044484352,16.10323873,219.53,219.45,35.37962589]
[1760044484569,16.10323873,219.53,219.46,0.68]
[1760044485448,15.94323873,219.53,219.46,0.68]
[1760044486239,11.38796519,219.53,219.46,0.68]
[1760044487038,11.38796519,219.53,219.45,34.69962589]
[1760044488254,11.38796519,219.53,219.45,20.8]
[1760044489749,11.38796519,219.53,219.44,20.8]
[1760044490056,11.38796519,219.53,219.46,0.67]
[1760044490965,15.94315126,219.53,219.46,0.67]
[1760044491169,15.94315126,219.53,219.45,0.67]
[1760044491540,48.14315126,219.53,219.45,0.67]
[1760044491934,15.94315126,219.53,219.45,0.67]
[1760044492759,11.38796519,219.53,219.45,0.67]
[1760044496273,12.32358284,219.6,219.45,0.67]
[1760044496274,3.77158317,219.63,219.46,43.05647521]
[1760044496445,19.99999999,219.74,219.46,43.05647521]
[1760044496446,0.68,219.68,219.57,20.8]
[1760044496646,0.68,219.68,219.58,21.47]
[1760044496967,4.55145418,219.71,219.59,0.67]
[1760044497482,15.93008965,219.71,219.62,20.8]
[1760044497796,15.93008965,219.71,219.63,21.47]
[1760044497967,15.93008965,219.71,219.64,0.67]
[1760044498463,4.55145418,219.71,219.64,0.67]
[1760044499663,15.92936464,219.72,219.64,0.67]
[1760044500261,4.55101094,219.74,219.64,5.22290455]
[1760044500463,4.55101094,219.74,219.67,20.8]
[1760044500762,15.92809294,219.74,219.68,0.67]
[1760044501148,0.68,219.73,219.66,20.8]
[1760044501453,0.68,219.72,219.63,0.67]
[1760044501772,26.80656486,219.71,219.6,21.47]
[1760044501953,26.80656486,219.71,219.61,21.47]
[1760044501954,0.68,219.7,219.61,21.47]
[1760044502266,4.55145418,219.71,219.62,0.67]
[1760044502761,4.55116201,219.73,219.63,20.8]
[1760044503065,4.55116201,219.73,219.64,0.66]
[1760044503278,4.55116201,219.73,219.64,33.24]
[1760044503450,4.55116201,219.73,219.67,20.8]
[1760044503646,5.23042343,219.76,219.67,20.8]
[1760044503850,5.23042343,219.76,219.68,0.66]
[1760044504159,16.60647002,219.76,219.68,13.99480438]
[1760044504366,15.92647002,219.76,219.68,13.99480438]
[1760044504556,0.66,219.75,219.68,13.99480438]
[1760044505762,15.9279148,219.74,219.68,13.99480438]
[1760044506674,15.9279148,219.74,219.67,20.8]
[1760044506675,0.66,219.73,219.62,0.66]
[1760044507860,15.92936464,219.72,219.62,0.66]
[1760044508058,0.66,219.71,219.59,0.66]
[1760044508378,0.66,219.71,219.61,20.8]
[1760044508579,0.66,219.71,219.59,0.66]
[1760044508580,0.66,219.7,219.59,0.66]
[1760044508758,10.87647521,219.69,219.59,0.66]
[1760044508964,10.87647521,219.69,219.47,19.99999999]
[1760044508965,10.87647521,219.67,219.52,0.66]
[1760044509165,10.87647521,219.65,219.53,0.66]
[1760044509364,0.66,219.66,219.54,20.8]
[1760044509683,4.55207574,219.68,219.59,20.8]
[1760044509878,15.9322651,219.68,219.6,0.66]
[1760044510360,15.9322651,219.68,219.61,20.8]
[1760044511455,4.55207574,219.68,219.62,0.66]
[1760044511783,11.3788353,219.71,219.62,21.46]
[1760044512077,11.3788353,219.71,219.63,0.66]
[1760044513760,11.3788353,219.71,219.63,5.21309512]
[1760044513964,11.3788353,219.71,219.64,0.66]
[1760044514982,11.3788353,219.71,219.64,80.96]
[1760044515162,12.0388353,219.71,219.64,80.96]
[1760044516186,12.0388353,219.71,219.64,80.3]
[1760044516187,0.66,219.7,219.64,80.3]
[1760044516393,11.53647521,219.7,219.64,80.3]
[1760044516681,0.66,219.69,219.64,80.3]
[1760044516980,0.66,219.68,219.64,80.3]
[1760044518082,15.93153989,219.69,219.62,20.8]
[1760044518289,0.66,219.67,219.62,20.8]
[1760044519098,0.66,219.67,219.62,21.46]
[1760044519396,4.55249021,219.66,219.62,21.46]
[1760044520390,15.93371574,219.66,219.62,20.8]
[1760044520688,16.59371574,219.66,219.6,80.96]
[1760044521185,16.59371574,219.66,219.6,0.66]
[1760044521489,15.93371574,219.66,219.6,0.66]
[1760044522059,0.66,219.65,219.59,20.8]
[1760044522275,0.66,219.64,219.57,0.66]
[1760044522481,0.66,219.64,219.54,0.66]
[1760044522680,0.66,219.64,219.51,32.56]
[1760044522880,0.66,219.63,219.54,21.46]
[1760044523090,0.66,219.62,219.54,21.46]
[1760044523396,15.93734346,219.61,219.54,0.66]
[1760044524466,48.49734346,219.61,219.54,0.66]
[1760044524875,49.15734346,219.61,219.54,0.66]
[1760044526388,49.15734346,219.61,219.51,21.46]
[1760044526571,0.66,219.6,219.51,21.46]
[1760044526765,0.66,219.59,219.52,0.66]
[1760044528293,4.55249021,219.66,219.55,20.8]
[1760044528471,4.55227294,219.68,219.59,20.8]
[1760044528673,4.55227294,219.68,219.6,0.66]
[1760044529705,11.38007287,219.69,219.6,0.66]
[1760044531196,11.38007287,219.69,219.6,5.2136864]
[1760044531371,11.38007287,219.69,219.61,0.66]
[1760044532110,11.38007287,219.69,219.61,5.21351402]
[1760044532284,11.38007287,219.69,219.62,0.66]
[1760044532595,15.93008965,219.71,219.64,20.8]
[1760044532796,0.66,219.69,219.59,0.7]
[1760044533010,0.66,219.69,219.6,20.8]
[1760044533301,15.93008965,219.71,219.6,20.8]
[1760044533302,0.69,219.68,219.6,20.8]
[1760044533519,16.62299038,219.67,219.52,47.99186879]
[1760044533702,33.25,219.66,219.58,0.7]
[1760044533909,33.25,219.66,219.55,0.7]
[1760044534207,10.87647521,219.65,219.55,0.7]
[1760044534414,0.69,219.64,219.55,0.7]
[1760044534708,10.87647521,219.63,219.55,0.7]
[1760044534915,0.69,219.62,219.55,0.7]
[1760044535214,0.69,219.62,219.51,25.35559063]
[1760044535410,15.93734346,219.61,219.53,0.7]
[1760044536613,4.55331265,219.63,219.56,20.8]
[1760044536793,15.93609278,219.63,219.56,20.8]
[1760044537208,0.69,219.62,219.55,0.7]
[1760044537420,4.5535267,219.61,219.56,20.8]
[1760044537587,4.5535267,219.61,219.56,21.5]
[1760044537991,0.69,219.6,219.53,20.8]
[1760044538407,0.69,219.6,219.52,0.7]
[1760044538590,0.69,219.6,219.53,20.8]
[1760044539516,4.55394143,219.59,219.53,21.5]
[1760044539696,4.55394143,219.59,219.5,4.55580428]
[1760044539697,0.69,219.58,219.52,20.8]
[1760044539891,15.93879502,219.59,219.52,21.5]
[1760044540211,15.93879502,219.59,219.53,20.8]
[1760044540418,15.93879502,219.59,219.52,0.7]
[1760044541898,0.69,219.6,219.52,0.7]
[1760044541899,0.69,219.58,219.52,0.7]
[1760044544119,0.69,219.6,219.52,0.7]
[1760044545018,15.93661778,219.62,219.52,0.7]
[1760044545207,48.45661778,219.62,219.52,0.7]
[1760044545390,15.87256387,219.67,219.53,20.8]
[1760044545599,33.24,219.66,219.54,0.71]
[1760044546119,15.93444115,219.65,219.54,0.71]
[1760044546606,0.72,219.64,219.54,0.71]
[1760044547215,4.55311205,219.63,219.57,20.8]
[1760044547396,4.55311205,219.63,219.57,21.51]
[1760044547796,15.93589218,219.63,219.57,0.71]
[1760044548210,4.55311205,219.63,219.57,0.71]
[1760044550614,15.93589218,219.63,219.57,0.71]
[1760044551611,15.93589218,219.63,219.57,21.51]
[1760044551815,15.93589218,219.63,219.57,0.71]
[1760044553507,4.55311205,219.63,219.57,0.71]
[1760044557328,0.72,219.63,219.57,0.71]
[1760044558614,4.55331936,219.62,219.57,0.71]
[1760044560710,11.38174368,219.65,219.56,4.55455059]
[1760044560711,0.72,219.67,219.58,0.71]
[1760044561036,0.72,219.67,219.59,20.8]
[1760044561212,0.72,219.67,219.6,0.71]
[1760044561826,0.72,219.67,219.56,0.71]
[1760044562023,0.72,219.67,219.57,20.8]
[1760044562206,0.72,219.67,219.58,0.71]
[1760044562832,32.44,219.68,219.61,20.8]
[1760044563014,4.55231064,219.67,219.62,0.66]
[1760044563535,0.72,219.66,219.6,0.66]
[1760044564829,4.55269747,219.65,219.58,20.8]
[1760044565143,0.72,219.64,219.58,20.8]
[1760044565658,0.72,219.64,219.58,101.1]
[1760044566214,4.55311205,219.63,219.58,101.1]
[1760044566441,4.55311205,219.63,219.58,101.76]
[1760044566652,4.55311205,219.63,219.58,21.46]
[1760044566965,10.87647521,219.61,219.51,0.66]
[1760044567123,0.72,219.6,219.51,21.46]
[1760044567319,0.72,219.59,219.51,21.46]
[1760044568014,4.55414882,219.58,219.51,0.66]
[1760044568262,5.27414882,219.58,219.48,13.90455937]
[1760044568418,0.72,219.57,219.49,0.66]
[1760044568624,33.16,219.57,219.49,0.66]
[1760044569737,33.16,219.57,219.48,20.8]
[1760044569946,0.72,219.56,219.48,35.12265776]
[1760044570116,15.94169892,219.55,219.48,35.12265776]
[1760044570539,0.72,219.54,219.48,34.46265776]
[1760044570721,0.72,219.54,219.48,20.8]
[1760044571321,0.72,219.53,219.44,0.66]
[1760044571756,0.72,219.53,219.45,20.8]
[1760044571934,15.94169892,219.55,219.45,20.8]
[1760044572249,10.87647521,219.54,219.45,20.8]
[1760044572432,10.87647521,219.54,219.44,0.66]
[1760044572629,10.87647521,219.54,219.45,0.66]
[1760044574245,15.94315126,219.53,219.45,0.66]
[1760044576236,11.38796519,219.53,219.45,0.66]
[1760044577425,11.38796519,219.53,219.45,80.96]
[1760044577723,11.38796519,219.53,219.44,80.3]
[1760044577929,11.38796519,219.53,219.41,0.66]
[1760044578168,11.38796519,219.53,219.39,0.66]
[1760044579446,11.38796519,219.53,219.38,35.38730507]
[1760044579772,11.38796519,219.53,219.4,0.66]
[1760044581141,11.38796519,219.53,219.41,20.8]
[1760044581958,11.38796519,219.53,219.4,21.46]
[1760044582643,11.38796519,219.53,219.41,20.8]
[1760044582845,11.38796519,219.53,219.4,0.66]
[1760044583558,38.71908165,219.53,219.4,80.96]
[1760044583743,9.46605836,219.52,219.4,80.96]
[1760044583946,32.36,219.51,219.4,80.96]
[1760044584965,38.72437357,219.5,219.4,80.96]
[1760044585355,38.72437357,219.5,219.4,80.3]
[1760044585553,38.72437357,219.5,219.41,0.66]
[1760044586260,32.36,219.49,219.41,0.66]
[1760044586560,15.9467833,219.48,219.41,0.66]
[1760044586754,15.9467833,219.48,219.41,80.96]
[1760044588966,15.94460388,219.51,219.42,0.66]
[1760044589267,48.26460388,219.51,219.42,80.96]
[1760044589468,48.26460388,219.51,219.43,0.66]
[1760044589766,48.26460388,219.51,219.43,80.96]
[1760044589947,48.26460388,219.51,219.44,0.66]
[1760044591039,71.04260943,219.51,219.44,0.66]
[1760044591245,71.04260943,219.51,219.43,80.3]
[1760044591865,20.8,219.48,219.43,80.3]
[1760044592457,15.9475099,219.47,219.43,80.3]
[1760044592648,32.34,219.46,219.43,80.3]
[1760044593878,32.34,219.46,219.38,0.72]
[1760044594547,15.94896331,219.45,219.38,0.72]
[1760044599853,38.73319662,219.45,219.38,0.72]
[1760044600280,38.73319662,219.45,219.36,0.72]
[1760044601182,20.8,219.42,219.36,0.72]
[1760044601358,48.25187091,219.41,219.36,0.72]
[1760044601867,48.25187091,219.41,219.37,0.72]
[1760044610888,15.95187091,219.41,219.32,94.1955557]
[1760044611066,15.95187091,219.41,219.38,0.7]
[1760044611067,32.22,219.4,219.38,0.7]
[1760044611272,32.22,219.4,219.39,0.7]
[1760044612092,36.77788514,219.4,219.39,0.7]
[1760044612388,48.17259799,219.4,219.35,0.7]
[1760044612594,48.17259799,219.4,219.36,0.7]
[1760044612889,48.17259799,219.4,219.37,0.7]
[1760044613088,15.95259799,219.4,219.37,0.7]
[1760044613293,32.24,219.39,219.37,0.7]
[1760044614170,4.55830066,219.38,219.37,0.7]
[1760044614567,36.79830066,219.38,219.37,0.7]
[1760044616596,48.19405232,219.38,219.34,0.7]
[1760044617001,48.19405232,219.38,219.35,0.7]
[1760044617184,48.19405232,219.38,219.36,0.7]
[1760044617495,48.19405232,219.38,219.32,10.87647521]
[1760044617702,48.19405232,219.38,219.33,0.7]
[1760044618902,36.79830066,219.38,219.33,0.7]
[1760044622119,32.2,219.39,219.34,10.87647521]
[1760044622299,32.2,219.39,219.35,0.7]
[1760044622918,36.75820124,219.39,219.35,0.7]
[1760044623414,36.75820124,219.39,219.33,80.3]
[1760044623590,36.75820124,219.39,219.34,0.72]
[1760044624129,48.15343347,219.39,219.35,0.72]
[1760044624290,36.75820124,219.39,219.35,0.72]
[1760044625710,36.75820124,219.39,219.36,0.72]
[1760044626614,36.75820124,219.39,219.37,0.72]
[1760044626786,36.75820124,219.39,219.37,81.02]
[1760044627107,36.75820124,219.39,219.37,80.3]
[1760044627284,36.75820124,219.39,219.37,81.02]
[1760044627686,36.75820124,219.39,219.37,80.3]
[1760044629913,48.15343347,219.39,219.31,0.1]
[1760044631118,70.94389793,219.39,219.31,0.1]
[1760044635413,70.94389793,219.39,219.32,0.72]
[1760044635414,15.95343347,219.39,219.32,0.72]
[1760044635721,32.18,219.38,219.32,0.72]
[1760044636622,15.95343347,219.39,219.32,0.72]
[1760044636822,32.18,219.38,219.33,10.87647521]
[1760044637002,32.18,219.38,219.34,0.72]
[1760044637631,4.55850845,219.37,219.34,0.72]
[1760044638497,4.55726199,219.43,219.35,10.87647521]
[1760044638731,32.18,219.42,219.36,0.72]
[1760044639402,4.55704389,219.45,219.37,10.87647521]
[1760044639743,36.75704389,219.45,219.39,15.43438953]
[1760044640022,36.75704389,219.45,219.4,0.72]
[1760044640718,36.75704389,219.45,219.4,5.27785479]
[1760044640908,36.75704389,219.45,219.41,0.72]
[1760044641602,32.2,219.49,219.43,20.8]
[1760044641809,32.2,219.49,219.43,21.52]
[1760044642625,32.2,219.49,219.44,0.72]
[1760044642808,4.5562238,219.48,219.43,20.8]
[1760044643014,4.5562238,219.48,219.45,0.72]
[1760044643715,4.5562238,219.48,219.43,20.8]
[1760044643919,4.5562238,219.48,219.44,0.72]
[1760044644507,32.2,219.49,219.44,81.02]
[1760044644832,32.2,219.49,219.45,0.72]
[1760044645020,36.75609272,219.49,219.45,0.72]
[1760044645414,32.2,219.49,219.45,81.02]
[1760044645630,32.2,219.49,219.46,0.72]
[1760044646836,4.55549382,219.52,219.47,10.87647521]
[1760044647131,4.55549382,219.52,219.48,0.72]
[1760044647533,32.18,219.53,219.48,81.02]
[1760044647736,4.55414882,219.58,219.49,11.59647521]
[1760044648030,36.75394954,219.59,219.51,31.67647521]
[1760044648232,32.2,219.59,219.53,10.87647521]
[1760044648415,32.2,219.59,219.55,10.87647521]
[1760044648616,32.2,219.59,219.55,11.59647521]
[1760044649123,32.2,219.59,219.56,0.72]
[1760044649710,36.75397865,219.59,219.56,0.72]
[1760044650205,32.2,219.59,219.55,20.8]
[1760044650430,11.38208525,219.65,219.55,20.8]
[1760044650431,11.38208525,219.65,219.58,10.87647521]
[1760044650614,32.2,219.62,219.58,10.87647521]
[1760044650811,32.2,219.62,219.59,0.72]
[1760044651210,32.2,219.62,219.6,0.72]
[1760044651410,32.2,219.62,219.61,0.72]
[1760044652641,20.8,219.72,219.61,0.72]
[1760044652642,0.2,219.75,219.69,20.8]
[1760044652942,4.54834894,219.86,219.74,10.87647521]
[1760044653114,0.4,219.85,219.74,32.33647521]
[1760044653314,15.91922131,219.86,219.69,65.8]
[1760044653315,22.28,219.84,219.72,20.8]
[1760044653611,0.4,219.83,219.69,32.33647521]
[1760044653811,0.4,219.82,219.69,32.33647521]
[1760044654010,0.4,219.81,219.69,32.33647521]
[1760044654226,32.86,219.8,219.69,32.33647521]
[1760044654431,48.36429136,219.79,219.71,10.87647521]
[1760044654830,0.4,219.78,219.71,10.87647521]
[1760044656237,4.55021158,219.77,219.71,10.87647521]
[1760044656439,15.92574054,219.77,219.71,10.87647521]
[1760044656645,15.92574054,219.77,219.7,0.66]
[1760044657320,4.55021158,219.77,219.7,0.66]
[1760044657626,15.92574054,219.77,219.7,0.66]
[1760044658952,16.32574054,219.77,219.7,0.66]
[1760044659149,16.32574054,219.77,219.7,10.87647521]
[1760044659334,16.32574054,219.77,219.7,0.66]
[1760044659526,16.32574054,219.77,219.7,14.49465823]
[1760044659719,4.55021158,219.77,219.71,11.53647521]
[1760044659919,4.55021158,219.77,219.72,0.66]
[1760044660119,4.55021158,219.77,219.71,10.87647521]
[1760044660342,32.38,219.78,219.71,10.87647521]
[1760044660533,32.78,219.78,219.71,10.87647521]
[1760044660733,32.78,219.78,219.7,14.49465823]
[1760044661950,4.55021158,219.77,219.7,14.49465823]
[1760044662443,15.92574054,219.77,219.7,14.49465823]
[1760044662617,4.55021158,219.77,219.7,14.49465823]
[1760044662824,4.55021158,219.77,219.71,0.66]
[1760044663634,15.92574054,219.77,219.7,0.66]
[1760044663922,0.4,219.76,219.68,0.66]
[1760044664139,15.92718998,219.75,219.68,0.66]
[1760044664647,15.92718998,219.75,219.68,14.27198698]
[1760044664945,16.32718998,219.75,219.68,14.27198698]
[1760044665254,0.4,219.74,219.66,0.66]
[1760044665545,32.36,219.73,219.66,0.66]
[1760044666122,4.55124704,219.72,219.66,0.66]
[1760044666533,15.92936464,219.72,219.66,0.66]
[1760044666746,16.32936464,219.72,219.66,0.66]
[1760044667950,0.4,219.71,219.64,0.66]
[1760044668326,15.93081474,219.7,219.64,0.66]
[1760044669459,15.93081474,219.7,219.62,20.8]
[1760044669754,16.33081474,219.7,219.62,21.46]
[1760044670340,16.33081474,219.7,219.63,0.66]
[1760044670546,16.33081474,219.7,219.63,14.26006265]
[1760044670857,16.33081474,219.7,219.63,0.66]
[1760044671159,0.4,219.69,219.6,0.66]
[1760044671450,32.74,219.68,219.6,0.66]
[1760044672238,15.93299038,219.67,219.6,0.66]
[1760044672442,16.33299038,219.67,219.6,0.66]
[1760044672747,0.4,219.66,219.58,32.33647521]
[1760044674038,0.4,219.66,219.58,35.13556032]
[1760044674253,15.93444115,219.65,219.58,35.13556032]
[1760044674455,15.93444115,219.65,219.59,0.66]